[Event "Titled Tuesday Blitz November 14 Early 2023"]
[White "DonCiao"]
[Black "Kashtanov, Ruslan"]
[BlackFideId "4124871"]
[WhiteElo "2130"]
[BlackElo "2446"]
[Result "0-1"]
[Round "4"]
[TimeControl "180+1"]
[Date "2023.11.14"]
[WhiteClock "0:00:00"]
[BlackClock "0:00:57"]
[Board "191"]

1. c4 {[%clk 0:03:00]}  c6 {[%clk 0:02:59]} 2. g3 {[%clk 0:03:00]}  d5 {[%clk 0:02:59]} 3. Nf3 {[%clk 0:03:00]}  Nf6 {[%clk 0:02:57]} 4. Bg2 {[%clk 0:03:00]}  Bf5 {[%clk 0:02:56]} 5. Qb3 {[%clk 0:02:56]}  Qb6 {[%clk 0:02:55]} 6. Qxb6 {[%clk 0:02:50]}  axb6 {[%clk 0:02:56]} 7. cxd5 {[%clk 0:02:50]}  cxd5 {[%clk 0:02:56]} 8. d3 {[%clk 0:02:50]}  e6 {[%clk 0:02:56]} 9. O-O {[%clk 0:02:48]}  h6 {[%clk 0:02:55]} 10. Nc3 {[%clk 0:02:47]}  Nc6 {[%clk 0:02:54]} 11. Nb5 {[%clk 0:02:47]}  Kd7 {[%clk 0:02:54]} 12. Be3 {[%clk 0:02:32]}  Bc5 {[%clk 0:02:50]} 13. Nfd4 {[%clk 0:02:27]}  Bg6 {[%clk 0:02:34]} 14. a3 {[%clk 0:02:00]}  Ng4 {[%clk 0:02:24]} 15. Nxc6 {[%clk 0:01:33]}  bxc6 {[%clk 0:02:03]} 16. Bxc5 {[%clk 0:01:31]}  bxc5 {[%clk 0:02:04]} 17. Nc3 {[%clk 0:01:30]}  Rhb8 {[%clk 0:02:02]} 18. Rab1 {[%clk 0:01:23]}  c4 {[%clk 0:01:57]} 19. Rfd1 {[%clk 0:00:55]}  cxd3 {[%clk 0:01:56]} 20. e4 {[%clk 0:00:52]}  Ne5 {[%clk 0:01:47]} 21. f4 {[%clk 0:00:47]}  Nc4 {[%clk 0:01:45]} 22. f5 {[%clk 0:00:44]}  Bh5 {[%clk 0:01:39]} 23. Rxd3 {[%clk 0:00:43]}  Nxb2 {[%clk 0:01:38]} 24. Rxb2 {[%clk 0:00:19]}  Rxb2 {[%clk 0:01:35]} 25. exd5 {[%clk 0:00:17]}  exd5 {[%clk 0:01:21]} 26. Nxd5 {[%clk 0:00:11]}  cxd5 {[%clk 0:01:16]} 27. Rxd5+ {[%clk 0:00:11]}  Ke7 {[%clk 0:01:09]} 28. f6+ {[%clk 0:00:10]}  gxf6 {[%clk 0:01:06]} 29. Rxh5 {[%clk 0:00:09]}  Rxa3 {[%clk 0:01:06]} 30. Rf5 {[%clk 0:00:06]}  Raa2 {[%clk 0:01:04]} 31. Bf1 {[%clk 0:00:06]}  Rxh2 {[%clk 0:01:01]} 32. Rf3 {[%clk 0:00:04]}  Rhc2 {[%clk 0:00:58]} 33. Re3+ {[%clk 0:00:03]}  Kf8 {[%clk 0:00:57]} 34. Rf3 {[%clk 0:00:01]}  Kg7 {[%clk 0:00:57]} 35. Re3 {[%clk 0:00:00]}  Ra1 {[%clk 0:00:57]} 0-1


[Site "https://www.chess.com"]

[Event "Titled Tuesday Blitz November 14 Early 2023"]
[White "Mikhalsky, Vladimir"]
[Black "Ghosh, Chanchal Kumer"]
[WhiteFideId "14144352"]
[BlackFideId "10201858"]
[WhiteElo "2446"]
[BlackElo "2125"]
[Result "1-0"]
[Round "4"]
[TimeControl "180+1"]
[Date "2023.11.14"]
[WhiteClock "0:00:54"]
[BlackClock "0:00:00"]
[Board "192"]

1. c4 {[%clk 0:02:55]}  e5 {[%clk 0:02:58]} 2. Nc3 {[%clk 0:02:54]}  Bc5 {[%clk 0:02:52]} 3. g3 {[%clk 0:02:53]}  Nc6 {[%clk 0:02:50]} 4. Bg2 {[%clk 0:02:54]}  a6 {[%clk 0:02:48]} 5. e3 {[%clk 0:02:53]}  Ba7 {[%clk 0:02:47]} 6. Nge2 {[%clk 0:02:52]}  d6 {[%clk 0:02:46]} 7. O-O {[%clk 0:02:52]}  Nge7 {[%clk 0:02:45]} 8. Rb1 {[%clk 0:02:49]}  O-O {[%clk 0:02:38]} 9. b4 {[%clk 0:02:48]}  Bg4 {[%clk 0:02:37]} 10. h3 {[%clk 0:02:45]}  Be6 {[%clk 0:02:35]} 11. Nd5 {[%clk 0:02:40]}  Kh8 {[%clk 0:02:18]} 12. Nec3 {[%clk 0:02:38]}  f5 {[%clk 0:02:15]} 13. f4 {[%clk 0:02:21]}  Bxd5 {[%clk 0:01:37]} 14. Nxd5 {[%clk 0:02:08]}  Nxd5 {[%clk 0:01:33]} 15. Bxd5 {[%clk 0:02:08]}  Rb8 {[%clk 0:01:32]} 16. Kh2 {[%clk 0:01:59]}  Qf6 {[%clk 0:01:27]} 17. Rg1 {[%clk 0:01:50]}  Ne7 {[%clk 0:01:24]} 18. Bf3 {[%clk 0:01:46]}  Qf7 {[%clk 0:01:07]} 19. Qc2 {[%clk 0:01:43]}  Ng6 {[%clk 0:01:03]} 20. Bb2 {[%clk 0:01:41]}  c5 {[%clk 0:00:52]} 21. Bd5 {[%clk 0:01:35]}  Qe7 {[%clk 0:00:50]} 22. b5 {[%clk 0:01:29]}  axb5 {[%clk 0:00:48]} 23. cxb5 {[%clk 0:01:28]}  Bb6 {[%clk 0:00:48]} 24. g4 {[%clk 0:01:24]}  fxg4 {[%clk 0:00:26]} 25. f5 {[%clk 0:01:23]}  Qh4 {[%clk 0:00:16]} 26. Rxg4 {[%clk 0:01:19]}  Qf2+ {[%clk 0:00:16]} 27. Rg2 {[%clk 0:01:18]}  Qxf5 {[%clk 0:00:16]} 28. Be4 {[%clk 0:01:15]}  Qh5 {[%clk 0:00:08]} 29. Bxg6 {[%clk 0:01:11]}  hxg6 {[%clk 0:00:07]} 30. Qxg6 {[%clk 0:01:10]}  Qxg6 {[%clk 0:00:04]} 31. Rxg6 {[%clk 0:01:10]}  Rf2+ {[%clk 0:00:04]} 32. Rg2 {[%clk 0:01:10]}  Rbf8 {[%clk 0:00:03]} 33. Bc3 {[%clk 0:01:07]}  Rxg2+ {[%clk 0:00:02]} 34. Kxg2 {[%clk 0:01:07]}  Rf5 {[%clk 0:00:02]} 35. Rf1 {[%clk 0:01:04]}  Rg5+ {[%clk 0:00:01]} 36. Kf3 {[%clk 0:01:04]}  d5 {[%clk 0:00:01]} 37. e4 {[%clk 0:00:54]}  d4 {[%clk 0:00:01]} 38. Bb2 {[%clk 0:00:55]}  c4 {[%clk 0:00:00]} 39. Rc1 {[%clk 0:00:54]} 1-0


[Site "https://www.chess.com"]

[Event "Titled Tuesday Blitz November 14 Early 2023"]
[White "Remolar Gallen, Jose"]
[Black "Sailer, Mike"]
[WhiteFideId "2215187"]
[BlackFideId "2012901"]
[WhiteElo "2440"]
[BlackElo "2092"]
[Result "1-0"]
[Round "4"]
[TimeControl "180+1"]
[Date "2023.11.14"]
[WhiteClock "0:01:45"]
[BlackClock "0:00:27"]
[Board "194"]

1. d4 {[%clk 0:03:00]}  d5 {[%clk 0:02:58]} 2. c4 {[%clk 0:02:59]}  Bf5 {[%clk 0:02:58]} 3. Nc3 {[%clk 0:02:59]}  e6 {[%clk 0:02:58]} 4. Qb3 {[%clk 0:02:59]}  Nc6 {[%clk 0:02:58]} 5. cxd5 {[%clk 0:02:53]}  exd5 {[%clk 0:02:58]} 6. Bf4 {[%clk 0:02:51]}  Bb4 {[%clk 0:02:37]} 7. e3 {[%clk 0:02:50]}  Nf6 {[%clk 0:02:37]} 8. Nf3 {[%clk 0:02:46]}  O-O {[%clk 0:02:29]} 9. Bb5 {[%clk 0:02:46]}  Bxc3+ {[%clk 0:02:22]} 10. Qxc3 {[%clk 0:02:41]}  Ne4 {[%clk 0:02:13]} 11. Qc1 {[%clk 0:02:41]}  Qe7 {[%clk 0:01:46]} 12. O-O {[%clk 0:02:35]}  g5 {[%clk 0:01:27]} 13. Bg3 {[%clk 0:02:31]}  Nxg3 {[%clk 0:01:26]} 14. hxg3 {[%clk 0:02:31]}  Nd8 {[%clk 0:01:14]} 15. Qc3 {[%clk 0:02:16]}  c6 {[%clk 0:01:13]} 16. Bd3 {[%clk 0:02:16]}  Bg6 {[%clk 0:01:11]} 17. Ne5 {[%clk 0:02:03]}  Kg7 {[%clk 0:01:00]} 18. Rae1 {[%clk 0:01:58]}  f6 {[%clk 0:00:59]} 19. Nxg6 {[%clk 0:01:51]}  hxg6 {[%clk 0:00:59]} 20. e4 {[%clk 0:01:48]}  dxe4 {[%clk 0:00:57]} 21. Rxe4 {[%clk 0:01:47]}  Qd6 {[%clk 0:00:39]} 22. Rfe1 {[%clk 0:01:47]}  Nf7 {[%clk 0:00:37]} 23. Re7 {[%clk 0:01:45]}  Rae8 {[%clk 0:00:29]} 24. Rxe8 {[%clk 0:01:44]}  Rxe8 {[%clk 0:00:27]} 25. Rxe8 {[%clk 0:01:45]} 1-0


[Site "https://www.chess.com"]

[Event "Titled Tuesday Blitz November 14 Early 2023"]
[White "Balla, Tamas-Kristof"]
[Black "Castillo Pena, Patricia Evarista"]
[WhiteFideId "1208497"]
[BlackFideId "6412106"]
[WhiteElo "2436"]
[BlackElo "2012"]
[Result "0-1"]
[Round "4"]
[TimeControl "180+1"]
[Date "2023.11.14"]
[WhiteClock "0:00:05"]
[BlackClock "0:00:10"]
[Board "196"]

1. e4 {[%clk 0:03:00]}  c5 {[%clk 0:02:50]} 2. c3 {[%clk 0:03:00]}  d5 {[%clk 0:02:49]} 3. exd5 {[%clk 0:03:00]}  Qxd5 {[%clk 0:02:49]} 4. d4 {[%clk 0:03:01]}  Nf6 {[%clk 0:02:49]} 5. Nf3 {[%clk 0:03:01]}  Bg4 {[%clk 0:02:48]} 6. Be3 {[%clk 0:03:01]}  cxd4 {[%clk 0:02:47]} 7. cxd4 {[%clk 0:03:01]}  Nc6 {[%clk 0:02:47]} 8. Nc3 {[%clk 0:02:59]}  Qd8 {[%clk 0:02:44]} 9. d5 {[%clk 0:02:57]}  Nb8 {[%clk 0:02:34]} 10. Be2 {[%clk 0:02:47]}  Nbd7 {[%clk 0:02:32]} 11. O-O {[%clk 0:02:44]}  e6 {[%clk 0:02:32]} 12. dxe6 {[%clk 0:02:44]}  Bxe6 {[%clk 0:02:32]} 13. Nd4 {[%clk 0:02:44]}  Be7 {[%clk 0:01:54]} 14. Nxe6 {[%clk 0:02:42]}  fxe6 {[%clk 0:01:55]} 15. Bc4 {[%clk 0:02:43]}  Kf7 {[%clk 0:01:49]} 16. Qb3 {[%clk 0:02:36]}  Nb6 {[%clk 0:01:31]} 17. Bxe6+ {[%clk 0:02:34]}  Kf8 {[%clk 0:01:31]} 18. Rfd1 {[%clk 0:02:33]}  Qc7 {[%clk 0:01:29]} 19. Rac1 {[%clk 0:02:33]}  Qe5 {[%clk 0:01:22]} 20. Bxb6 {[%clk 0:02:26]}  axb6 {[%clk 0:01:22]} 21. Qxb6 {[%clk 0:02:26]}  Ra6 {[%clk 0:01:11]} 22. Qxb7 {[%clk 0:02:17]}  Rxe6 {[%clk 0:01:08]} 23. Nb5 {[%clk 0:02:03]}  Qe4 {[%clk 0:00:51]} 24. Rc8+ {[%clk 0:01:54]}  Ne8 {[%clk 0:00:51]} 25. Qxe4 {[%clk 0:01:29]}  Rxe4 {[%clk 0:00:52]} 26. f3 {[%clk 0:01:27]}  Re2 {[%clk 0:00:51]} 27. Rd4 {[%clk 0:01:12]}  g5 {[%clk 0:00:47]} 28. f4 {[%clk 0:01:00]}  Rxb2 {[%clk 0:00:43]} 29. fxg5 {[%clk 0:00:57]}  Rxb5 {[%clk 0:00:42]} 30. g6 {[%clk 0:00:54]}  hxg6 {[%clk 0:00:41]} 31. Rd1 {[%clk 0:00:52]}  Rhh5 {[%clk 0:00:36]} 32. h3 {[%clk 0:00:51]}  Rhd5 {[%clk 0:00:34]} 33. Rf1+ {[%clk 0:00:51]}  Rf5 {[%clk 0:00:34]} 34. Re1 {[%clk 0:00:52]}  Rbe5 {[%clk 0:00:33]} 35. Ra1 {[%clk 0:00:52]}  Ra5 {[%clk 0:00:33]} 36. Rb1 {[%clk 0:00:47]}  Rfb5 {[%clk 0:00:30]} 37. Rf1+ {[%clk 0:00:44]}  Rf5 {[%clk 0:00:30]} 38. Rb1 {[%clk 0:00:44]}  Kf7 {[%clk 0:00:30]} 39. Rc2 {[%clk 0:00:40]}  Nf6 {[%clk 0:00:28]} 40. Re1 {[%clk 0:00:39]}  Rfe5 {[%clk 0:00:27]} 41. Rf1 {[%clk 0:00:39]}  Rac5 {[%clk 0:00:27]} 42. Rb2 {[%clk 0:00:38]}  Rb5 {[%clk 0:00:26]} 43. Rc2 {[%clk 0:00:39]}  Rec5 {[%clk 0:00:25]} 44. Re2 {[%clk 0:00:39]}  Re5 {[%clk 0:00:23]} 45. Rc2 {[%clk 0:00:38]}  Bc5+ {[%clk 0:00:23]} 46. Kh1 {[%clk 0:00:38]}  Bd6 {[%clk 0:00:23]} 47. Rcf2 {[%clk 0:00:38]}  Rf5 {[%clk 0:00:22]} 48. Rxf5 {[%clk 0:00:37]}  Rxf5 {[%clk 0:00:21]} 49. Rd1 {[%clk 0:00:38]}  Ke6 {[%clk 0:00:20]} 50. Re1+ {[%clk 0:00:38]}  Be5 {[%clk 0:00:21]} 51. a4 {[%clk 0:00:38]}  Rf2 {[%clk 0:00:20]} 52. a5 {[%clk 0:00:37]}  Ra2 {[%clk 0:00:21]} 53. Rb1 {[%clk 0:00:34]}  Rxa5 {[%clk 0:00:20]} 54. Rb6+ {[%clk 0:00:35]}  Bd6 {[%clk 0:00:21]} 55. Kg1 {[%clk 0:00:34]}  Kd5 {[%clk 0:00:19]} 56. Rb1 {[%clk 0:00:33]}  Bc5+ {[%clk 0:00:18]} 57. Kf1 {[%clk 0:00:33]}  Ne4 {[%clk 0:00:19]} 58. Rb8 {[%clk 0:00:24]}  Ra2 {[%clk 0:00:17]} 59. Rd8+ {[%clk 0:00:23]}  Bd6 {[%clk 0:00:17]} 60. Rg8 {[%clk 0:00:21]}  g5 {[%clk 0:00:17]} 61. h4 {[%clk 0:00:20]}  gxh4 {[%clk 0:00:16]} 62. Rg4 {[%clk 0:00:21]}  Kd4 {[%clk 0:00:15]} 63. Rxh4 {[%clk 0:00:21]}  Bg3 {[%clk 0:00:14]} 64. Rh8 {[%clk 0:00:18]}  Ke3 {[%clk 0:00:14]} 65. Ra8 {[%clk 0:00:05]}  Rxa8 {[%clk 0:00:10]} 66. Kg1 {[%clk 0:00:05]}  Ra1# {[%clk 0:00:10]} 0-1


[Site "https://www.chess.com"]

[Event "Titled Tuesday Blitz November 14 Early 2023"]
[White "Azali, Tannaz"]
[Black "Villafane Gomez, Jaime"]
[WhiteFideId "12537721"]
[BlackFideId "4426517"]
[WhiteElo "2392"]
[BlackElo "1741"]
[Result "1-0"]
[Round "4"]
[TimeControl "180+1"]
[Date "2023.11.14"]
[WhiteClock "0:02:10"]
[BlackClock "0:01:15"]
[Board "198"]

1. d4 {[%clk 0:03:00]}  Nf6 {[%clk 0:02:58]} 2. c4 {[%clk 0:03:01]}  e5 {[%clk 0:02:57]} 3. dxe5 {[%clk 0:03:00]}  Ng4 {[%clk 0:02:57]} 4. e4 {[%clk 0:03:01]}  Nxe5 {[%clk 0:02:54]} 5. Nc3 {[%clk 0:03:00]}  Bc5 {[%clk 0:02:51]} 6. f4 {[%clk 0:02:59]}  Nec6 {[%clk 0:02:50]} 7. Na4 {[%clk 0:02:59]}  Bxg1 {[%clk 0:02:35]} 8. Rxg1 {[%clk 0:02:58]}  Qh4+ {[%clk 0:02:34]} 9. g3 {[%clk 0:02:58]}  Qxh2 {[%clk 0:02:34]} 10. Be3 {[%clk 0:02:58]}  d6 {[%clk 0:02:02]} 11. Rc1 {[%clk 0:02:49]}  h5 {[%clk 0:01:57]} 12. Rc2 {[%clk 0:02:42]}  Bg4 {[%clk 0:01:15]} 13. Qc1 {[%clk 0:02:10]} 1-0


[Site "https://www.chess.com"]

[Event "Titled Tuesday Blitz November 14 Early 2023"]
[White "Kuchava, Ana"]
[Black "Matveeva, Olga"]
[WhiteFideId "13605348"]
[BlackFideId "24107018"]
[WhiteElo "2237"]
[BlackElo "2374"]
[Result "0-1"]
[Round "4"]
[TimeControl "180+1"]
[Date "2023.11.14"]
[WhiteClock "0:00:11"]
[BlackClock "0:00:22"]
[Board "200"]

1. d4 {[%clk 0:03:00]}  d5 {[%clk 0:02:59]} 2. Nf3 {[%clk 0:02:58]}  Nf6 {[%clk 0:02:59]} 3. c4 {[%clk 0:02:55]}  e6 {[%clk 0:02:58]} 4. Nc3 {[%clk 0:02:54]}  a6 {[%clk 0:02:58]} 5. cxd5 {[%clk 0:02:46]}  exd5 {[%clk 0:02:59]} 6. Bg5 {[%clk 0:02:42]}  Be6 {[%clk 0:03:00]} 7. e3 {[%clk 0:02:41]}  Be7 {[%clk 0:02:56]} 8. Bd3 {[%clk 0:02:39]}  Nbd7 {[%clk 0:02:52]} 9. O-O {[%clk 0:02:36]}  h6 {[%clk 0:02:51]} 10. Bh4 {[%clk 0:02:35]}  O-O {[%clk 0:02:50]} 11. Rb1 {[%clk 0:02:18]}  c5 {[%clk 0:02:44]} 12. Qe2 {[%clk 0:02:13]}  c4 {[%clk 0:02:42]} 13. Bc2 {[%clk 0:02:13]}  b5 {[%clk 0:02:42]} 14. a3 {[%clk 0:02:12]}  Re8 {[%clk 0:02:21]} 15. Ne5 {[%clk 0:02:01]}  Nxe5 {[%clk 0:02:13]} 16. dxe5 {[%clk 0:01:59]}  Ng4 {[%clk 0:02:12]} 17. Bg3 {[%clk 0:01:39]}  Bh4 {[%clk 0:02:02]} 18. f4 {[%clk 0:01:27]}  Bxg3 {[%clk 0:01:54]} 19. hxg3 {[%clk 0:01:28]}  Qb6 {[%clk 0:01:49]} 20. Rbe1 {[%clk 0:01:18]}  Nxe3 {[%clk 0:01:43]} 21. Qxe3 {[%clk 0:01:16]}  Qxe3+ {[%clk 0:01:44]} 22. Rxe3 {[%clk 0:01:15]}  d4 {[%clk 0:01:45]} 23. Ree1 {[%clk 0:00:59]}  dxc3 {[%clk 0:01:44]} 24. bxc3 {[%clk 0:01:00]}  Rad8 {[%clk 0:01:39]} 25. Rd1 {[%clk 0:00:59]}  Bg4 {[%clk 0:01:35]} 26. Rxd8 {[%clk 0:00:22]}  Rxd8 {[%clk 0:01:36]} 27. Rf2 {[%clk 0:00:20]}  Kf8 {[%clk 0:01:35]} 28. Kf1 {[%clk 0:00:19]}  Ke7 {[%clk 0:01:29]} 29. Ke1 {[%clk 0:00:19]}  g6 {[%clk 0:01:18]} 30. Rd2 {[%clk 0:00:18]}  Rxd2 {[%clk 0:00:59]} 31. Kxd2 {[%clk 0:00:18]}  Ke6 {[%clk 0:00:58]} 32. Ke3 {[%clk 0:00:19]}  Bf5 {[%clk 0:00:53]} 33. Bd1 {[%clk 0:00:19]}  Kd5 {[%clk 0:00:41]} 34. Bf3+ {[%clk 0:00:18]}  Kc5 {[%clk 0:00:41]} 35. g4 {[%clk 0:00:17]}  Bd3 {[%clk 0:00:38]} 36. Bb7 {[%clk 0:00:17]}  a5 {[%clk 0:00:37]} 37. Bc8 {[%clk 0:00:13]}  b4 {[%clk 0:00:37]} 38. axb4+ {[%clk 0:00:11]}  axb4 {[%clk 0:00:38]} 39. cxb4+ {[%clk 0:00:11]}  Kxb4 {[%clk 0:00:38]} 40. Kd2 {[%clk 0:00:12]}  Be4 {[%clk 0:00:37]} 41. g3 {[%clk 0:00:11]}  c3+ {[%clk 0:00:37]} 42. Kc1 {[%clk 0:00:11]}  Kc4 {[%clk 0:00:29]} 43. f5 {[%clk 0:00:12]}  gxf5 {[%clk 0:00:22]} 44. gxf5 {[%clk 0:00:12]}  Kd5 {[%clk 0:00:22]} 45. e6 {[%clk 0:00:13]}  fxe6 {[%clk 0:00:21]} 46. fxe6 {[%clk 0:00:14]}  Kd6 {[%clk 0:00:20]} 47. Bd7 {[%clk 0:00:13]}  Bf5 {[%clk 0:00:18]} 48. Bc8 {[%clk 0:00:12]}  Bxe6 {[%clk 0:00:17]} 49. Bxe6 {[%clk 0:00:13]}  Kxe6 {[%clk 0:00:18]} 50. Kc2 {[%clk 0:00:13]}  Kf5 {[%clk 0:00:19]} 51. Kxc3 {[%clk 0:00:14]}  Kg4 {[%clk 0:00:19]} 52. Kd2 {[%clk 0:00:14]}  Kxg3 {[%clk 0:00:20]} 53. Ke1 {[%clk 0:00:14]}  Kg2 {[%clk 0:00:20]} 54. Ke2 {[%clk 0:00:13]}  h5 {[%clk 0:00:21]} 55. Ke3 {[%clk 0:00:14]}  h4 {[%clk 0:00:21]} 56. Kf4 {[%clk 0:00:11]}  h3 {[%clk 0:00:22]} 0-1


[Site "https://www.chess.com"]

[Event "Titled Tuesday Blitz November 14 Early 2023"]
[White "Wahlund, Max"]
[Black "Bogaudinov, Rushan"]
[WhiteFideId "1741861"]
[BlackFideId "4129288"]
[WhiteElo "2137"]
[BlackElo "2343"]
[Result "1-0"]
[Round "4"]
[TimeControl "180+1"]
[Date "2023.11.14"]
[WhiteClock "0:00:29"]
[BlackClock "0:00:55"]
[Board "202"]

1. d4 {[%clk 0:02:55]}  Nf6 {[%clk 0:02:57]} 2. c4 {[%clk 0:02:55]}  e6 {[%clk 0:02:58]} 3. g3 {[%clk 0:02:55]}  h5 {[%clk 0:02:57]} 4. Bg2 {[%clk 0:02:54]}  h4 {[%clk 0:02:57]} 5. Nf3 {[%clk 0:02:54]}  h3 {[%clk 0:02:57]} 6. Bf1 {[%clk 0:02:54]}  d5 {[%clk 0:02:57]} 7. e3 {[%clk 0:02:52]}  c5 {[%clk 0:02:56]} 8. Nc3 {[%clk 0:02:51]}  Nc6 {[%clk 0:02:56]} 9. cxd5 {[%clk 0:02:50]}  exd5 {[%clk 0:02:56]} 10. Be2 {[%clk 0:02:47]}  Be7 {[%clk 0:02:54]} 11. a3 {[%clk 0:02:45]}  Bf5 {[%clk 0:02:49]} 12. dxc5 {[%clk 0:02:43]}  Bxc5 {[%clk 0:02:48]} 13. b4 {[%clk 0:02:43]}  Be7 {[%clk 0:02:47]} 14. Bb2 {[%clk 0:02:43]}  O-O {[%clk 0:02:41]} 15. Nd4 {[%clk 0:02:43]}  Be4 {[%clk 0:02:27]} 16. f3 {[%clk 0:02:40]}  Bg6 {[%clk 0:02:26]} 17. Bd3 {[%clk 0:02:33]}  Bxd3 {[%clk 0:02:25]} 18. Qxd3 {[%clk 0:02:32]}  Ne5 {[%clk 0:02:25]} 19. Qf5 {[%clk 0:02:25]}  Nc4 {[%clk 0:02:24]} 20. Bc1 {[%clk 0:02:15]}  Rc8 {[%clk 0:02:21]} 21. Nce2 {[%clk 0:02:00]}  Nxa3 {[%clk 0:02:16]} 22. Bxa3 {[%clk 0:01:54]}  Re8 {[%clk 0:02:10]} 23. O-O {[%clk 0:01:47]}  g6 {[%clk 0:02:10]} 24. Qxh3 {[%clk 0:01:46]}  Bf8 {[%clk 0:02:09]} 25. Rac1 {[%clk 0:01:37]}  Rxc1 {[%clk 0:02:04]} 26. Rxc1 {[%clk 0:01:38]}  a5 {[%clk 0:02:05]} 27. Nf4 {[%clk 0:01:26]}  axb4 {[%clk 0:02:00]} 28. Bb2 {[%clk 0:01:24]}  Rxe3 {[%clk 0:01:53]} 29. Rc8 {[%clk 0:01:16]}  Qe7 {[%clk 0:01:34]} 30. Nde2 {[%clk 0:00:50]}  Nh7 {[%clk 0:01:05]} 31. Nxd5 {[%clk 0:00:35]}  Qe6 {[%clk 0:00:58]} 32. Qxe6 {[%clk 0:00:34]}  Rxe6 {[%clk 0:00:57]} 33. Nef4 {[%clk 0:00:32]}  Rc6 {[%clk 0:00:55]} 34. Ne7# {[%clk 0:00:29]} 1-0


[Site "https://www.chess.com"]

[Event "Titled Tuesday Blitz November 14 Early 2023"]
[White "Perez Cruz, Adianet"]
[Black "patzersame"]
[WhiteFideId "3510115"]
[WhiteElo "2007"]
[BlackElo "2330"]
[Result "0-1"]
[Round "4"]
[TimeControl "180+1"]
[Date "2023.11.14"]
[WhiteClock "0:00:15"]
[BlackClock "0:00:38"]
[Board "203"]

1. d4 {[%clk 0:03:00]}  c5 {[%clk 0:02:57]} 2. c3 {[%clk 0:03:00]}  cxd4 {[%clk 0:02:57]} 3. cxd4 {[%clk 0:03:01]}  d5 {[%clk 0:02:58]} 4. Nf3 {[%clk 0:03:02]}  Nc6 {[%clk 0:02:59]} 5. Nc3 {[%clk 0:03:02]}  Bf5 {[%clk 0:02:59]} 6. Bf4 {[%clk 0:03:02]}  e6 {[%clk 0:02:56]} 7. e3 {[%clk 0:03:03]}  Nf6 {[%clk 0:02:55]} 8. Bd3 {[%clk 0:03:02]}  Bd6 {[%clk 0:02:51]} 9. Bxd6 {[%clk 0:03:02]}  Qxd6 {[%clk 0:02:51]} 10. O-O {[%clk 0:03:02]}  O-O {[%clk 0:02:50]} 11. a3 {[%clk 0:03:01]}  a6 {[%clk 0:02:50]} 12. Rc1 {[%clk 0:03:00]}  Rfe8 {[%clk 0:02:50]} 13. b4 {[%clk 0:02:57]}  Rac8 {[%clk 0:02:49]} 14. Bxf5 {[%clk 0:02:49]}  exf5 {[%clk 0:02:49]} 15. Na4 {[%clk 0:02:50]}  f4 {[%clk 0:02:45]} 16. exf4 {[%clk 0:02:36]}  Qxf4 {[%clk 0:02:46]} 17. Nc5 {[%clk 0:02:29]}  Rc7 {[%clk 0:02:35]} 18. Nxb7 {[%clk 0:02:22]}  Nxd4 {[%clk 0:02:19]} 19. Qxd4 {[%clk 0:01:32]}  Qxc1 {[%clk 0:02:11]} 20. Nc5 {[%clk 0:01:12]}  Qxa3 {[%clk 0:02:10]} 21. h3 {[%clk 0:01:04]}  a5 {[%clk 0:02:10]} 22. Na6 {[%clk 0:00:58]}  Rc4 {[%clk 0:02:06]} 23. Qb6 {[%clk 0:00:50]}  axb4 {[%clk 0:02:04]} 24. Rd1 {[%clk 0:00:44]}  h6 {[%clk 0:01:57]} 25. Nc7 {[%clk 0:00:44]}  Qa4 {[%clk 0:01:40]} 26. Rb1 {[%clk 0:00:35]}  Re2 {[%clk 0:01:21]} 27. Qb8+ {[%clk 0:00:28]}  Kh7 {[%clk 0:01:21]} 28. Nb5 {[%clk 0:00:26]}  Rxf2 {[%clk 0:01:07]} 29. Nd6 {[%clk 0:00:22]}  Rcc2 {[%clk 0:01:03]} 30. Nxf7 {[%clk 0:00:18]}  Rxg2+ {[%clk 0:01:01]} 31. Kh1 {[%clk 0:00:18]}  Qe8 {[%clk 0:00:54]} 32. Qf4 {[%clk 0:00:17]}  Qe4 {[%clk 0:00:46]} 33. Qxe4+ {[%clk 0:00:17]}  dxe4 {[%clk 0:00:47]} 34. N3e5 {[%clk 0:00:18]}  Rh2+ {[%clk 0:00:43]} 35. Kg1 {[%clk 0:00:18]}  Rcg2+ {[%clk 0:00:41]} 36. Kf1 {[%clk 0:00:19]}  Nh5 {[%clk 0:00:38]} 37. Rxb4 {[%clk 0:00:15]}  Ng3+ {[%clk 0:00:38]} 0-1


[Site "https://www.chess.com"]

[Event "Titled Tuesday Blitz November 14 Early 2023"]
[White "Akylbek2021"]
[Black "Wu, Derek"]
[BlackFideId "30914558"]
[WhiteElo "2232"]
[BlackElo "2666"]
[Result "0-1"]
[Round "4"]
[TimeControl "180+1"]
[Date "2023.11.14"]
[WhiteClock "0:00:01"]
[BlackClock "0:00:58"]
[Board "205"]

1. e4 {[%clk 0:02:08]}  c5 {[%clk 0:02:50]} 2. Nf3 {[%clk 0:02:08]}  Nc6 {[%clk 0:02:49]} 3. d4 {[%clk 0:02:08]}  cxd4 {[%clk 0:02:49]} 4. Nxd4 {[%clk 0:02:08]}  Nf6 {[%clk 0:02:35]} 5. Nc3 {[%clk 0:02:08]}  e5 {[%clk 0:02:35]} 6. Ndb5 {[%clk 0:02:07]}  d6 {[%clk 0:02:35]} 7. Bg5 {[%clk 0:02:06]}  a6 {[%clk 0:02:34]} 8. Na3 {[%clk 0:02:06]}  Be6 {[%clk 0:02:34]} 9. Nc4 {[%clk 0:01:55]}  Rb8 {[%clk 0:02:34]} 10. Bxf6 {[%clk 0:01:42]}  Qxf6 {[%clk 0:02:35]} 11. Nb6 {[%clk 0:01:43]}  Qd8 {[%clk 0:02:14]} 12. Nbd5 {[%clk 0:01:42]}  g6 {[%clk 0:02:12]} 13. Be2 {[%clk 0:01:39]}  Bh6 {[%clk 0:02:09]} 14. O-O {[%clk 0:01:38]}  O-O {[%clk 0:02:09]} 15. Kh1 {[%clk 0:01:16]}  b5 {[%clk 0:02:05]} 16. f4 {[%clk 0:01:11]}  f5 {[%clk 0:01:52]} 17. exf5 {[%clk 0:01:03]}  gxf5 {[%clk 0:01:49]} 18. Qe1 {[%clk 0:00:31]}  b4 {[%clk 0:01:44]} 19. Bxa6 {[%clk 0:00:13]}  bxc3 {[%clk 0:01:43]} 20. Nxc3 {[%clk 0:00:13]}  Bxf4 {[%clk 0:01:38]} 21. Rd1 {[%clk 0:00:12]}  Bh6 {[%clk 0:01:32]} 22. b3 {[%clk 0:00:12]}  Qe7 {[%clk 0:01:26]} 23. a4 {[%clk 0:00:12]}  Nd4 {[%clk 0:01:26]} 24. Qf2 {[%clk 0:00:09]}  Kh8 {[%clk 0:01:21]} 25. Bd3 {[%clk 0:00:06]}  Rbc8 {[%clk 0:01:20]} 26. Nb5 {[%clk 0:00:03]}  Nxb5 {[%clk 0:01:17]} 27. Bxb5 {[%clk 0:00:04]}  e4 {[%clk 0:01:13]} 28. a5 {[%clk 0:00:04]}  e3 {[%clk 0:01:11]} 29. Qe2 {[%clk 0:00:05]}  f4 {[%clk 0:01:08]} 30. a6 {[%clk 0:00:05]}  Qg7 {[%clk 0:01:07]} 31. c4 {[%clk 0:00:04]}  Bg4 {[%clk 0:01:07]} 32. Qd3 {[%clk 0:00:01]}  e2 {[%clk 0:01:08]} 33. Qxd6 {[%clk 0:00:01]}  exd1=Q {[%clk 0:01:06]} 34. Rxd1 {[%clk 0:00:02]}  Bxd1 {[%clk 0:01:06]} 35. Qxd1 {[%clk 0:00:03]}  Rfd8 {[%clk 0:01:06]} 36. Qe1 {[%clk 0:00:02]}  Qd4 {[%clk 0:01:02]} 37. h3 {[%clk 0:00:02]}  Qd1 {[%clk 0:01:01]} 38. Qxd1 {[%clk 0:00:03]}  Rxd1+ {[%clk 0:01:02]} 39. Kh2 {[%clk 0:00:04]}  Bg5 {[%clk 0:01:00]} 40. h4 {[%clk 0:00:03]}  Bxh4 {[%clk 0:01:01]} 41. Kh3 {[%clk 0:00:03]}  Bf2 {[%clk 0:00:58]} 42. a7 {[%clk 0:00:01]}  Bxa7 {[%clk 0:00:58]} 0-1


[Site "https://www.chess.com"]